Workbook

Sheet PLACEMENT OPTION
A1: Bidders must provide the NHLS with costing information for a 5 years’ contract duration. The bid price quoted must be inclusive as per the scope of work.
A2: Terms and Conditions of pricing are as follows:
A3: a) Bidder must complete the pricing as per tables below.
A4: b) Prices must be provided in South African Rand (R).
A5: c) Line Prices are all VAT EXCLUSIVE and TOTAL PRICE is VAT INCLUSIVE.
A6: d) Bidders who fail to price according to the costing template provided will be disqualified.
A7: e) NHLS is not bound by the below quantities as this contract is for procurement of the consumables on an as and when required basis.
A8: f) NHLS will appoint based on the rates therefore the total bid offer is for comparison purposes only.
A9: g) Only firm prices will be accepted. Non-firm prices (including prices subject to rates of exchange variations) will not be considered.
A11: PRICING SCHEDULE SECTION A: INSTRUMENT PLACEMENT COSTS - SCANNERS (Please provide sufficient capacity for slide numbers in Appendix A)
A13: Item Description | B13: Unit of measure | C13: Quantity | D13: Monthly Rate | E13: Total Cost | F13: Monthly Rate | G13: Total Cost | H13: Monthly Unit Rate | I13: Total Cost | J13: Monthly Rate | K13: Total Cost | L13: Monthly Rate | M13: Total Cost | N13: Total Annual Cost
D14: in | E14: Year 1 | F14: in | G14: Year 2 | H14: in | I14: Year 3 | J14: in | K14: Year 4 | L14: Year 5 | M14: Year 5 | N14: Year 1 - 5
D15: Year 1 | E15: (VAT Excl.) | F15: Year 2 | G15: (VAT Excl.) | H15: Year 3 | I15: (VAT Excl.) | J15: Year 4 | K15: (VAT Excl.) | L15: in | M15: (VAT Excl.) | N15: (VAT Excl.)
D16: (VAT Excl.) | F16: (VAT Excl.) | H16: (VAT Excl.) | J16: (VAT Excl.) | L16: (VAT Excl.)
A17: Large Laboratory Placement: 1.Tshwane Academic Division 2. Chris Hani Baragwanath 3. Charlotte Maxeke 4. Port Elizabeth 5. Nelson Mandela 6. Tygerberg 7. Groote Schuur 8.Universitas 9.Inkosi Albert Luthuli | B17: Monthly | C17: 9 | E17: =D17*12*C17 -> R0.00 | G17: =F17*12*C17 -> R0.00 | I17: =H17*12*C17 -> R0.00 | K17: =J17*12*C17 -> R0.00 | M17: =L17*12*C17 -> R0.00 | N17: =E17+G17+I17+K17+M17 -> R0.00
A18: Medium Laboratory Placement: 1. George Mukhari 2. East London | B18: Monthly | C18: 2 | E18: =D18*12*C18 -> R0.00 | G18: =F18*12*C18 -> R0.00 | I18: =H18*12*C18 -> R0.00 | K18: =J18*12*C18 -> R0.00 | M18: =L18*12*C18 -> R0.00 | N18: =M18*12 -> R0.00
A19: Small Laboratory Placement: 1. Green Point 2. Polokwane 3. NIOH | B19: Monthly | C19: 3 | E19: R0.00 | G19: R0.00 | I19: R0.00 | K19: R0.00 | M19: R0.00 | N19: =E19+G19+I19+K19+M19 -> R0.00
M20: Subtotal (VAT Excl.) | N20: =SUM(N17:N19) -> R0.00
M21: VAT 15% | N21: =R131*0.15 -> R0.00
M22: Total (VAT Incl.) | N22: =N20+N21 -> R0.00
A25: PRICING SCHEDULE SECTION B: INSTRUMENT PLACEMENT COSTS - VIEWING STATIONS (Please provide a quote for sufficient viewing stations per laboratory as per Appendix A. Please note that RXH requires 2 viewing stations independently of GSH)
A27: Item Description | B27: Unit of measure | C27: Quantity | D27: Monthly Rate | E27: Total Cost | F27: Monthly Rate | G27: Total Cost | H27: Monthly Unit Rate | I27: Total Cost | J27: Monthly Rate | K27: Total Cost | L27: Monthly Rate | M27: Total Cost | N27: Total Annual Cost
D28: in | E28: Year 1 | F28: in | G28: Year 2 | H28: in | I28: Year 3 | J28: in | K28: Year 4 | L28: Year 5 | M28: Year 5 | N28: Year 1 - 5
D29: Year 1 | E29: (VAT Excl.) | F29: Year 2 | G29: (VAT Excl.) | H29: Year 3 | I29: (VAT Excl.) | J29: Year 4 | K29: (VAT Excl.) | L29: in | M29: (VAT Excl.) | N29: (VAT Excl.)
D30: (VAT Excl.) | F30: (VAT Excl.) | H30: (VAT Excl.) | J30: (VAT Excl.) | L30: (VAT Excl.)
A31: Large Laboratory Placement: 1.Tshwane Academic Division 2. Chris Hani Baragwanath 3. Charlotte Maxeke 4. Port Elizabeth 5. Nelson Mandela 6. Tygerberg 7. Groote Schuur 8.Universitas 9.Inkosi Albert Luthuli | B31: Monthly | C31: 9 | E31: =D31*12*C31 -> R0.00 | G31: =F31*12*C31 -> R0.00 | I31: =H31*12*C31 -> R0.00 | K31: =J31*12*C31 -> R0.00 | M31: =L31*12*C31 -> R0.00 | N31: =E31+G31+I31+K31+M31 -> R0.00
A32: Medium Laboratory Placement: 1. George Mukhari 2. East London | B32: Monthly | C32: 2 | E32: =D32*12*C32 -> R0.00 | G32: =F32*12*C32 -> R0.00 | I32: =H32*12*C32 -> R0.00 | K32: =J32*12*C32 -> R0.00 | M32: =L32*12*C32 -> R0.00 | N32: =M32*12 -> R0.00
A33: Small Laboratory Placement: 1. Green Point 2. Polokwane 3. NIOH | B33: Monthly | C33: 3 | E33: R0.00 | G33: R0.00 | I33: R0.00 | K33: R0.00 | M33: R0.00 | N33: =E33+G33+I33+K33+M33 -> R0.00
M34: Subtotal (VAT Excl.) | N34: =SUM(N31:N33) -> R0.00
M35: VAT 15% | N35: =R144*0.15 -> R0.00
M36: Total (VAT Incl.) | N36: =N34+N35 -> R0.00
A39: PRICING SCHEDULE SECTION C: INSTRUMENT PLACEMENT COSTS - Barcode and Cassette printers (Please confirm whether existing equipment as in Appendix A is compatible with proposed digital pathology solution. If not, please quote for sufficient equipment to process the slide volumes as outlined in Appendix A.)
A41: Item Description | B41: Unit of measure | C41: Quantity | D41: Monthly Rate | E41: Total Cost | F41: Monthly Rate | G41: Total Cost | H41: Monthly Unit Rate | I41: Total Cost | J41: Monthly Rate | K41: Total Cost | L41: Monthly Rate | M41: Total Cost | N41: Total Annual Cost
D42: in | E42: Year 1 | F42: in | G42: Year 2 | H42: in | I42: Year 3 | J42: in | K42: Year 4 | L42: Year 5 | M42: Year 5 | N42: Year 1 - 5
D43: Year 1 | E43: (VAT Excl.) | F43: Year 2 | G43: (VAT Excl.) | H43: Year 3 | I43: (VAT Excl.) | J43: Year 4 | K43: (VAT Excl.) | L43: in | M43: (VAT Excl.) | N43: (VAT Excl.)
D44: (VAT Excl.) | F44: (VAT Excl.) | H44: (VAT Excl.) | J44: (VAT Excl.) | L44: (VAT Excl.)
A45: Large Laboratory Placement: 1.Tshwane Academic Division 2. Chris Hani Baragwanath 3. Charlotte Maxeke 4. Port Elizabeth 5. Nelson Mandela 6. Tygerberg 7. Groote Schuur 8.Universitas 9.Inkosi Albert Luthuli | B45: Monthly | C45: 9 | E45: =D45*12*C45 -> R0.00 | G45: =F45*12*C45 -> R0.00 | I45: =H45*12*C45 -> R0.00 | K45: =J45*12*C45 -> R0.00 | M45: =L45*12*C45 -> R0.00 | N45: =E45+G45+I45+K45+M45 -> R0.00
A46: Medium Laboratory Placement: 1. George Mukhari 2. East London | B46: Monthly | C46: 2 | E46: =D46*12*C46 -> R0.00 | G46: =F46*12*C46 -> R0.00 | I46: =H46*12*C46 -> R0.00 | K46: =J46*12*C46 -> R0.00 | M46: =L46*12*C46 -> R0.00 | N46: =M46*12 -> R0.00
A47: Small Laboratory Placement: 1. Green Point 2. Polokwane 3. NIOH | B47: Monthly | C47: 3 | E47: R0.00 | G47: R0.00 | I47: R0.00 | K47: R0.00 | M47: R0.00 | N47: =E47+G47+I47+K47+M47 -> R0.00
M48: Subtotal (VAT Excl.) | N48: =SUM(N45:N47) -> R0.00
M49: VAT 15% | N49: =R158*0.15 -> R0.00
M50: Total (VAT Incl.) | N50: =N48+N49 -> R0.00
A53: PRICING SCHEDULE SECTION D: Reagents (Any reagents or consumables required for the operation of the instruments must be quoted here. If none, please specify none)
A55: Reagent/Consumables Description | B55: Material No. | C55: Pack Size | D55: Unit of Measure | E55: Unit Price (Exc VAT) Year 1 | F55: Unit Price (Exc VAT) Year 2 | G55: Unit Price (Exc VAT) Year 3 | H55: Unit Price (Exc VAT) Year 4 | I55: Unit Price (Exc VAT) Year 5
E56: R | F56: R | G56: R | H56: R | I56: R
E57: R | F57: R | G57: R | H57: R | I57: R
E58: R | F58: R | G58: R | H58: R | I58: R
E59: R | F59: R | G59: R | H59: R | I59: R
E60: R | F60: R | G60: R | H60: R | I60: R
E61: R | F61: R | G61: R | H61: R | I61: R
E62: R | F62: R | G62: R | H62: R | I62: R
E63: R | F63: R | G63: R | H63: R | I63: R
E64: R | F64: R | G64: R | H64: R | I64: R
E65: R | F65: R | G65: R | H65: R | I65: R
E66: =SUM(E56:E65) -> R0.00 | F66: =SUM(F56:F65) -> R0.00 | G66: R0.00 | H66: R0.00 | I66: R0.00
H67: Subtotal (VAT Excl.) | I67: =E66+F66+G66+H66+I66 -> R0.00
H68: VAT 15% | I68: =I67*0.15 -> R0.00
H69: Total (VAT Incl.) | I69: =I67+I68 -> R0.00
A72: Pricing Schedule E: Service and maintenace costs (Stiplulate the required service interval e.g semi annually/annually)
A74: Item Description | B74: Unit of measure | C74: Number of Service Intervals Year 1 | D74: Unit Rate | E74: Total Cost | F74: Number of Service Intervals Year 2 | G74: Unit Rate | H74: Total Cost | I74: Number of Service Intervals Year 3 | J74: Unit Rate | K74: Total Cost | L74: Number of Service Intervals Year 4 | M74: Unit Rate | N74: Total Cost | O74: Number of Service Intervals Year 5 | P74: Unit Rate | Q74: Total Cost | R74: Total Annual Cost
D75: in | E75: Year 1 | G75: in | H75: Year 2 | J75: in | K75: Year 3 | M75: in | N75: Year 4 | P75: Year 5 | Q75: Year 5 | R75: Year 1 - 5
D76: Year 1 | E76: (VAT Excl.) | G76: Year 2 | H76: (VAT Excl.) | J76: Year 3 | K76: (VAT Excl.) | M76: Year 4 | N76: (VAT Excl.) | P76: in | Q76: (VAT Excl.) | R76: (VAT Excl.)
D77: (VAT Excl.) | G77: (VAT Excl.) | J77: (VAT Excl.) | M77: (VAT Excl.) | P77: (VAT Excl.)
A78: Comprehensive preventative maintenance contract: Large (TAD; CHBAH; CMJAH; NM; TYB;GSH; IAL & Univ) Medium: (DGM & EL) Small (GPC; PLK & NIOH) | B78: Per Site | E78: =C78*D78 -> R0.00 | H78: =F78*G78 -> R0.00 | K78: =I78*J78 -> R0.00 | N78: =L78*M78 -> R0.00 | Q78: =O78*P78 -> R0.00 | R78: =E78+H78+K78+N78+Q78 -> R0.00
A79: Corrective maintenance and breakdown support: Large (TAD; CHBAH; CMJAH; NM; TYB; GSH, IAL & Univ) Medium: (DGM & EL) Small (GPC; PLK & NIOH) | B79: Per Site | E79: =C79*D79 -> R0.00 | H79: =F79*G79 -> R0.00 | K79: =I79*J79 -> R0.00 | N79: =L79*M79 -> R0.00 | Q79: =O79*P79 -> R0.00 | R79: =E79+H79+K79+N79+Q79 -> R0.00
Q80: Subtotal (VAT Excl.) | R80: =SUM(R78:R79) -> R0.00
Q81: VAT 15% | R81: =R80*0.15 -> R0.00
Q82: Total Price (VAT Incl.) | R82: =R80+R81 -> R0.00
A86: SECTION F: TRAINING ((Please provide sufficient capacity for training in Appendix A)
A88: Item Description | B88: Unit of measure | C88: Estimated Year 1 | D88: Unit Rate | E88: Total Cost | F88: Estimated Year 2 | G88: Unit Rate | H88: Total Cost | I88: Estimated Year 3 | J88: Unit Rate | K88: Total Cost | L88: Estimated Year 4 | M88: Unit Rate | N88: Total Cost | O88: Estimated Year 5 | P88: Unit Rate | Q88: Total Cost | R88: Total Annual Cost
D89: in | E89: Year 1 | G89: in | H89: Year 2 | J89: in | K89: Year 3 | M89: in | N89: Year 4 | P89: Year 5 | Q89: Year 5 | R89: Year 1 - 5
D90: Year 1 | E90: (VAT Excl.) | G90: Year 2 | H90: (VAT Excl.) | J90: Year 3 | K90: (VAT Excl.) | M90: Year 4 | N90: (VAT Excl.) | P90: in | Q90: (VAT Excl.) | R90: (VAT Excl.)
D91: (VAT Excl.) | G91: (VAT Excl.) | J91: (VAT Excl.) | M91: (VAT Excl.) | P91: (VAT Excl.)
A92: Technical Staff training | B92: Per delegate | C92: 121 | E92: =C92*D92 -> R0.00 | F92: 0 | H92: =F92*G92 -> R0.00 | I92: 0 | J92: R0.00 | K92: =I92*J92 -> R0.00 | L92: 0 | M92: R0.00 | N92: =L92*M92 -> R0.00 | O92: 0 | P92: R0.00 | Q92: =O92*P92 -> R0.00 | R92: =E92+H92+K92+N92+Q92 -> R0.00
Q93: Subtotal (VAT Excl.) | R93: =SUM(R91:R92) -> R0.00
Q94: VAT (15%) | R94: =R93*0.15 -> R0.00
Q95: Total Price (VAT Incl.) | R95: =R93+R94 -> R0.00
A99: Summary of the pricing scehdule - Placement Option | I99: Bid Amount
A100: Pricing Schedule A | B100: Scanners | I100: =N22 -> R0.00
A101: Pricing Schedule B | B101: Viewing Stations | I101: =N36 -> R0.00
A102: Pricing Schedule C | B102: Barcode and Cassette printers | I102: =N50 -> R0.00
A103: Pricing Schedule D | B103: Reagents and Consumables | I103: =I69 -> R0.00
A104: Pricing Schedule E | B104: Service and maintenace costs | I104: =R82 -> R0.00
A105: Pricing Schedule F | B105: Training | I105: =R95 -> R0.00
A106: Total Bid Offer for 5 years (All inclusive) | I106: =SUM(I100:I105) -> R0.00

Sheet OUTRIGHT PURCHASE OPTION
A1: Bidders must provide the NHLS with costing information for a 5 years’ contract duration. The bid price quoted must be inclusive as per the scope of work.
A2: Terms and Conditions of pricing are as follows:
A3: a) Bidder must complete the pricing as per tables below.
A4: b) Prices must be provided in South African Rand (R).
A5: c) Line Prices are all VAT EXCLUSIVE and TOTAL PRICE is VAT INCLUSIVE.
A6: d) Bidders who fail to price according to the costing template provided will be disqualified.
A7: e) NHLS is not bound by the below quantities as this contract is for procurement of the consumables on an as and when required basis.
A8: f) NHLS will appoint based on the rates therefore the total bid offer is for comparison purposes only.
A10: PRICING SCHEDULE SECTION A: INSTRUMENT OUTRIGHT PURCHASE COSTS - SCANNERS (Please provide sufficient capacity for slide numbers in Appendix A)
A12: Item Description | B12: Unit of measure | C12: Quantity | E12: Total Outright Cost
D13: Outright Fee | E13: Once off
E14: (VAT Excl.)
A16: Large Laboratory Outright: 1.Tshwane Academic Division 2. Chris Hani Baragwanath 3. Charlotte Maxeke 4. Port Elizabeth 5. Nelson Mandela 6. Tygerberg 7. Groote Schuur 8.Universitas 9.Inkosi Albert Luthuli | B16: Once off | C16: 9 | D16: R0.00 | E16: =C16*D16 -> R0.00
A17: Medium Laboratory Outright: 1. George Mukhari 2. East London | B17: Once off | C17: 2 | D17: R0.00 | E17: =C17*D17 -> R0.00
A18: Small Laboratory Outright: 1. Green Point 2. Polokwane 3. NIOH | B18: Once off | C18: 3 | D18: R0.00 | E18: R0.00
D19: Subtotal (VAT Excl.) | E19: =SUM(E16:E18) -> R0.00
D20: VAT 15% | E20: =H185*0.15 -> R0.00
D21: Total (VAT Incl.) | E21: =E19+E20 -> R0.00
A24: PRICING SCHEDULE SECTION B: INSTRUMENT OUTRIGHT PURCHASE COSTS - VIEWING STATIONS (Please provide a quote for sufficient viewing stations per laboratory as per Appendix A. Please note that Red Cross requires 2 viewing stations independently of Groote Schuur)
A26: Item Description | B26: Unit of measure | C26: Quantity | E26: Total Stations Cost
D27: Outright Fee - Viewing Stations | E27: Once off
E28: (VAT Excl.)
A30: Large Laboratory Outright: 1.Tshwane Academic Division 2. Chris Hani Baragwanath 3. Charlotte Maxeke 4. Port Elizabeth 5. Nelson Mandela 6. Tygerberg 7. Groote Schuur 8.Universitas 9.Inkosi Albert Luthuli | B30: Once off | C30: 9 | D30: R0.00 | E30: =C30*D30 -> R0.00
A31: Medium Laboratory Outright: 1. George Mukhari 2. East London | B31: Once off | C31: 2 | D31: R0.00 | E31: =C31*D31 -> R0.00
A32: Small Laboratory Outright: 1. Green Point 2. Polokwane 3. NIOH | B32: Once off | C32: 3 | D32: R0.00 | E32: R0.00
D33: Subtotal (VAT Excl.) | E33: =SUM(E30:E32) -> R0.00
D34: VAT 15% | E34: =H198*0.15 -> R0.00
D35: Total (VAT Incl.) | E35: =E33+E34 -> R0.00
A38: PRICING SCHEDULE SECTION C: INSTRUMENT OUTRIGHT PURCHASE COSTS - Barcode and Cassette printers (Please confirm whether existing equipment as in Appendix A is compatible with proposed digital pathology solution. If not, please quote for sufficient equipment to process the slide volumes as outlined in Appendix A.)
A39: Item Description | B39: Unit of measure | C39: Quantity | E39: Total Stations Cost
D40: Outright Fee - Barcode and cassette printers | E40: Once off
E41: (VAT Excl.)
A43: Large Laboratory Outright: 1.Tshwane Academic Division 2. Chris Hani Baragwanath 3. Charlotte Maxeke 4. Port Elizabeth 5. Nelson Mandela 6. Tygerberg 7. Groote Schuur 8.Universitas 9.Inkosi Albert Luthuli | B43: Once off | C43: 9 | D43: R0.00 | E43: =C43*D43 -> R0.00
A44: Medium Laboratory Outright: 1. George Mukhari 2. East London | B44: Once off | C44: 2 | D44: R0.00 | E44: =C44*D44 -> R0.00
A45: Small Laboratory Outright: 1. Green Point 2. Polokwane 3. NIOH | B45: Once off | C45: 3 | D45: R0.00 | E45: R0.00
D46: Subtotal (VAT Excl.) | E46: =SUM(E43:E45) -> R0.00
D47: VAT 15% | E47: =H212*0.15 -> R0.00
D48: Total (VAT Incl.) | E48: =E46+E47 -> R0.00
A52: SECTION D: COST OF REMOVAL OF EQUIPMENT
A54: Item Description | B54: Unit of measure | C54: Quantity | E54: Total Stations Cost
D55: Outright Fee - Equipment removal | E55: Once off
E56: (VAT Excl.)
A58: Equipment removal: Large (TAD; CHBAH; CMJAH; NM; TYB, GSH, IAL & UNIV) Medium: (DGM & EL) Small (GPC; PLK & NIOH) | B58: Per site | C58: 14 | D58: R0.00 | E58: =C58*D58 -> R0.00
D59: Subtotal (VAT Excl.) | E59: =SUM(E58:E58) -> R0.00
D60: VAT 15% | E60: =H225*0.15 -> R0.00
D61: Total (VAT Incl.) | E61: =E59+E60 -> R0.00
A65: PRICING SCHEDULE SECTION E: Reagents (Any reagents or consumables required for the operation of the instruments must be quoted here. If none, please specify none)
A67: Reagent/Consumables Description | B67: Material No. | C67: Pack Size | D67: Unit of Measure | E67: Unit Price (Exc VAT) Year 1 | F67: Unit Price (Exc VAT) Year 2 | G67: Unit Price (Exc VAT) Year 3 | H67: Unit Price (Exc VAT) Year 4 | I67: Unit Price (Exc VAT) Year 5
E68: R | F68: R | G68: R | H68: R | I68: R
E69: R | F69: R | G69: R | H69: R | I69: R
E70: R | F70: R | G70: R | H70: R | I70: R
E71: R | F71: R | G71: R | H71: R | I71: R
E72: R | F72: R | G72: R | H72: R | I72: R
E73: R | F73: R | G73: R | H73: R | I73: R
E74: R | F74: R | G74: R | H74: R | I74: R
E75: R | F75: R | G75: R | H75: R | I75: R
E76: R | F76: R | G76: R | H76: R | I76: R
E77: R | F77: R | G77: R | H77: R | I77: R
E78: =SUM(E68:E77) -> R0.00 | F78: =SUM(F68:F77) -> R0.00 | G78: R0.00 | H78: R0.00 | I78: R0.00
H79: Subtotal (VAT Excl.) | I79: =E78+F78+G78+H78+I78 -> R0.00
H80: VAT 15% | I80: =I79*0.15 -> R0.00
H81: Total (VAT Incl.) | I81: =I79+I80 -> R0.00
A86: Pricing Schedule E: Service and maintenace costs (Stiplulate the required service interval e.g semi annually/annually)
A88: Item Description | B88: Unit of measure | C88: Number of Service Intervals Year 1 | D88: Unit Rate | E88: Total Cost | F88: Number of Service Intervals Year 2 | G88: Unit Rate | H88: Total Cost | I88: Number of Service Intervals Year 3 | J88: Unit Rate | K88: Total Cost | L88: Number of Service Intervals Year 4 | M88: Unit Rate | N88: Total Cost | O88: Number of Service Intervals Year 5 | P88: Unit Rate | Q88: Total Cost | R88: Total Annual Cost
D89: in | E89: Year 1 | G89: in | H89: Year 2 | J89: in | K89: Year 3 | M89: in | N89: Year 4 | P89: Year 5 | Q89: Year 5 | R89: Year 1 - 5
D90: Year 1 | E90: (VAT Excl.) | G90: Year 2 | H90: (VAT Excl.) | J90: Year 3 | K90: (VAT Excl.) | M90: Year 4 | N90: (VAT Excl.) | P90: in | Q90: (VAT Excl.) | R90: (VAT Excl.)
D91: (VAT Excl.) | G91: (VAT Excl.) | J91: (VAT Excl.) | M91: (VAT Excl.) | P91: (VAT Excl.)
A92: Comprehensive preventative maintenance contract: Large (TAD; CHBAH; CMJAH; NM; TYB, GSH, IAL & UNIV) Medium: (DGM & EL) Small (GPC; PLK & NIOH) | B92: Per Site | E92: =C92*D92 -> R0.00 | H92: =F92*G92 -> R0.00 | K92: =I92*J92 -> R0.00 | N92: =L92*M92 -> R0.00 | Q92: =O92*P92 -> R0.00 | R92: =E92+H92+K92+N92+Q92 -> R0.00
A93: Corrective maintenance and breakdown support: Large (TAD; CHBAH; CMJAH; NM; TYB, GSH, IAL & UNIV) Medium: (DGM & EL) Small (GPC; PLK & NIOH) | B93: Per Site | E93: =C93*D93 -> R0.00 | H93: =F93*G93 -> R0.00 | K93: =I93*J93 -> R0.00 | N93: =L93*M93 -> R0.00 | Q93: =O93*P93 -> R0.00 | R93: =E93+H93+K93+N93+Q93 -> R0.00
Q94: Subtotal (VAT Excl.) | R94: =SUM(R92:R93) -> R0.00
Q95: VAT 15% | R95: =R94*0.15 -> R0.00
Q96: Total Price (VAT Incl.) | R96: =R94+R95 -> R0.00
A102: SECTION F: TRAINING (Please provide sufficient capacity for training in Appendix A)
A104: Item Description | B104: Unit of measure | C104: Estimated Year 1 | D104: Unit Rate | E104: Total Cost | F104: Estimated Year 2 | G104: Unit Rate | H104: Total Cost | I104: Estimated Year 3 | J104: Unit Rate | K104: Total Cost | L104: Estimated Year 4 | M104: Unit Rate | N104: Total Cost | O104: Estimated Year 5 | P104: Unit Rate | Q104: Total Cost | R104: Total Annual Cost
D105: in | E105: Year 1 | G105: in | H105: Year 2 | J105: in | K105: Year 3 | M105: in | N105: Year 4 | P105: Year 5 | Q105: Year 5 | R105: Year 1 - 5
D106: Year 1 | E106: (VAT Excl.) | G106: Year 2 | H106: (VAT Excl.) | J106: Year 3 | K106: (VAT Excl.) | M106: Year 4 | N106: (VAT Excl.) | P106: in | Q106: (VAT Excl.) | R106: (VAT Excl.)
D107: (VAT Excl.) | G107: (VAT Excl.) | J107: (VAT Excl.) | M107: (VAT Excl.) | P107: (VAT Excl.)
A108: Technical Staff training | B108: Per delegate | C108: 121 | E108: =C108*D108 -> R0.00 | F108: 0 | G108: R0.00 | H108: =F108*G108 -> R0.00 | I108: 0 | J108: R0.00 | K108: =I108*J108 -> R0.00 | L108: 0 | M108: R0.00 | N108: =L108*M108 -> R0.00 | O108: 0 | P108: R0.00 | Q108: =O108*P108 -> R0.00 | R108: =E108+H108+K108+N108+Q108 -> R0.00
Q109: Subtotal (VAT Excl.) | R109: =SUM(R107:R108) -> R0.00
Q110: VAT (15%) | R110: =R109*0.15 -> R0.00
Q111: Total Price (VAT Incl.) | R111: =R109+R110 -> R0.00
A116: Summary of the pricing scehdule - Outright Purchase Option | I116: Bid Amount
A117: Pricing Schedule A | B117: Scanners | I117: =E21 -> R0.00
A118: Pricing Schedule B | B118: Viewing Stations | I118: =E35 -> R0.00
A119: Pricing Schedule C | B119: Barcode and Cassette printers | I119: =E48 -> R0.00
A120: Pricing Schedule D | B120: Reagents and Consumables | I120: =I81 -> R0.00
A121: Pricing Schedule E | B121: Service and maintenace costs | I121: =R96 -> R0.00
A122: Pricing Schedule F | B122: Training | I122: =R111 -> R0.00
A123: Total Bid Offer for 5 years (All inclusive) | I123: =SUM(I117:I122) -> R0.00

Sheet Sheet2 (hidden)
A5: 974513 | B5: 81209 | C5: =+B5*12 -> 974508
E6: 17.69 | L6: 90.94 | M6: 938 | N6: =+M6*L6 -> 85301.72
E7: 10.88 | M7: 12
E8: 62.37 | M8: =+M6*M7 -> 11256
E9: =SUM(E6:E8) -> 90.94 | F9: 938 | G9: =+F9*E9 -> 85301.72 | H9: 12 | I9: =+G9*H9 -> 1023620.64 | M9: 5
G10: =+B5 -> 81209 | M10: =+M8*M9 -> 56280
G11: =+G10-G9 -> -4092.72 | H11: 12 | I11: =+G11*H11 -> -49112.64 | M11: =+M10*E9 -> 5118103.2 | N11: 5122360 | O11: =+N11-M11 -> 4256.8 | P11: =+O11/N11 -> 0.0008310232002
R12: =4092*2.5% -> 102.3
N13: 938 | R13: 4092
C14: 974513 | D14: 998876 | E14: =+D14-C14 -> 24363 | F14: =+E14/C14 -> 0.03 | N14: 60 | R14: =+R13+R12 -> 4194.3
N15: =+N14*N13 -> 56280 | O15: 56330
C16: 1023848 | D16: =+D14 -> 998876 | E16: =+D16-C16 -> -24972 | F16: =+E16/C16 -> (0.02) | N16: =+N15-O15 -> -50
K17: 2.50%
C18: 974513 | E18: =+C18 -> 974513 | G18: 81209 | J18: =+G18 -> 81209 | K18: =+J18*$K$17 -> 2030.225 | L18: =+K18+J18 -> 83239.225
B19: =+C18/C19-1 -> -2% | C19: 998876 | D19: =+C19/C18 -> 1.02500018 | F19: =+G18/G19-1 -> -2% | G19: 83240 | H19: =+G19/G18 -> 102.5% | J19: =+G19 -> 83240 | K19: =+J19*$K$17 -> 2081 | L19: =+K19+J19 -> 85321 | P19: 938 | Q19: 12 | R19: =+Q19*P19 -> 11256 | S19: 5 | T19: =+R19*S19 -> 56280
B20: =+C19/C20-1 -> -2% | C20: 1023848 | D20: =+C20/C19 -> 1.0250001 | F20: =+G19/G20-1 -> -2% | G20: 85321 | H20: =+G20/G19 -> 102.5% | J20: =+G20 -> 85321 | K20: =+J20*$K$17 -> 2133.025 | L20: =+K20+J20 -> 87454.025
B21: =+C20/C21-1 -> -2% | C21: 1049444 | D21: =+C21/C20 -> 1.024999805 | F21: =+G20/G21-1 -> -2% | G21: 87454 | H21: =+G21/G20 -> 102.5% | J21: =+G21 -> 87454 | K21: =+J21*$K$17 -> 2186.35 | L21: =+K21+J21 -> 89640.35
B22: =+C21/C22-1 -> -2% | C22: 1075680 | D22: =+C22/C21 -> 1.024999905 | F22: =+G21/G22-1 -> -2% | G22: 89640 | H22: =+G22/G21 -> 102.5% | J22: =+G22 -> 89640 | K22: =+J22*$K$17 -> 2241 | L22: =+K22+J22 -> 91881
C24: =+J18 -> 81209 | D24: =+C24/$E$9 -> 892.9953816
C25: =+J19 -> 83240 | D25: =+C25/$E$9 -> 915.3287882 | E25: =+D25/D24 -> 1.025009543
C26: =+J20 -> 85321 | D26: =+C26/$E$9 -> 938.2120079 | E26: =+D26/D25 -> 1.025
C27: =+J21 -> 87454 | D27: =+C27/$E$9 -> 961.6670332 | E27: =+D27/D26 -> 1.024999707
C28: =+J22 -> 89640 | D28: =+C28/$E$9 -> 985.7048603 | E28: =+D28/D27 -> 1.024995998
